[Event "Titled Tuesday Blitz August 1 Early 2023"]
[White "Kleiman, Jake"]
[Black "Rasulov, Vugar"]
[WhiteFideId "2020041"]
[BlackFideId "13402390"]
[WhiteElo "2539"]
[BlackElo "2859"]
[Result "0-1"]
[Round "7"]
[TimeControl "180+1"]
[Date "2023.08.01"]
[WhiteClock "0:00:04"]
[BlackClock "0:01:25"]
[Board "17"]

1. e4 {[%clk 0:03:00]}  c6 {[%clk 0:02:59]} 2. Nc3 {[%clk 0:03:00]}  d5 {[%clk 0:03:00]} 3. Nf3 {[%clk 0:03:01]}  dxe4 {[%clk 0:02:59]} 4. Nxe4 {[%clk 0:03:02]}  Nf6 {[%clk 0:03:00]} 5. Qe2 {[%clk 0:03:02]}  Nxe4 {[%clk 0:03:00]} 6. Qxe4 {[%clk 0:03:01]}  Nd7 {[%clk 0:03:01]} 7. Bc4 {[%clk 0:03:01]}  Nf6 {[%clk 0:03:02]} 8. Ne5 {[%clk 0:03:02]}  e6 {[%clk 0:03:02]} 9. Qe2 {[%clk 0:03:03]}  b5 {[%clk 0:03:03]} 10. Bb3 {[%clk 0:03:03]}  Qc7 {[%clk 0:03:01]} 11. d4 {[%clk 0:03:02]}  Bd6 {[%clk 0:03:01]} 12. O-O {[%clk 0:03:02]}  O-O {[%clk 0:03:00]} 13. Re1 {[%clk 0:03:00]}  c5 {[%clk 0:02:54]} 14. dxc5 {[%clk 0:02:51]}  Qxc5 {[%clk 0:02:55]} 15. Bg5 {[%clk 0:02:35]}  Bb7 {[%clk 0:02:39]} 16. Rad1 {[%clk 0:01:45]}  Ne4 {[%clk 0:02:09]} 17. Rxd6 {[%clk 0:00:37]}  Qxd6 {[%clk 0:02:07]} 18. Bf4 {[%clk 0:00:34]}  Qd4 {[%clk 0:01:43]} 19. c3 {[%clk 0:00:31]}  Nxc3 {[%clk 0:01:42]} 20. Qg4 {[%clk 0:00:24]}  Nd5 {[%clk 0:01:37]} 21. Bxd5 {[%clk 0:00:21]}  Qxd5 {[%clk 0:01:31]} 22. h4 {[%clk 0:00:14]}  f6 {[%clk 0:01:26]} 23. Nf3 {[%clk 0:00:10]}  e5 {[%clk 0:01:25]} 24. Bh6 {[%clk 0:00:10]}  Qf7 {[%clk 0:01:25]} 25. Rd1 {[%clk 0:00:07]}  Bxf3 {[%clk 0:01:25]} 26. gxf3 {[%clk 0:00:04]}  Qg6 {[%clk 0:01:25]} 0-1


[Site "https://www.chess.com"]

[Event "Titled Tuesday Blitz August 1 Early 2023"]
[White "Weetik, Vjacheslav"]
[Black "Firouzja, Alireza"]
[WhiteFideId "4153472"]
[BlackFideId "12573981"]
[WhiteElo "2747"]
[BlackElo "3070"]
[Result "0-1"]
[Round "7"]
[TimeControl "180+1"]
[Date "2023.08.01"]
[WhiteClock "0:00:00"]
[BlackClock "0:02:05"]
[Board "19"]

1. d4 {[%clk 0:02:59]}  Nf6 {[%clk 0:03:00]} 2. c4 {[%clk 0:02:59]}  g6 {[%clk 0:03:00]} 3. Nc3 {[%clk 0:02:53]}  Bg7 {[%clk 0:03:00]} 4. e4 {[%clk 0:02:53]}  d6 {[%clk 0:03:01]} 5. Nf3 {[%clk 0:02:54]}  O-O {[%clk 0:03:01]} 6. Be2 {[%clk 0:02:55]}  Na6 {[%clk 0:03:02]} 7. O-O {[%clk 0:02:53]}  e5 {[%clk 0:03:02]} 8. Be3 {[%clk 0:02:45]}  Qe7 {[%clk 0:03:02]} 9. d5 {[%clk 0:02:41]}  Ng4 {[%clk 0:02:59]} 10. Bg5 {[%clk 0:02:40]}  f6 {[%clk 0:02:59]} 11. Bh4 {[%clk 0:02:38]}  h5 {[%clk 0:02:57]} 12. h3 {[%clk 0:02:23]}  Nh6 {[%clk 0:02:53]} 13. Nd2 {[%clk 0:02:19]}  Nf7 {[%clk 0:02:49]} 14. Rb1 {[%clk 0:02:10]}  Ng5 {[%clk 0:02:39]} 15. b4 {[%clk 0:02:08]}  f5 {[%clk 0:02:39]} 16. Kh1 {[%clk 0:02:01]}  Bf6 {[%clk 0:02:37]} 17. exf5 {[%clk 0:01:34]}  Bxf5 {[%clk 0:02:34]} 18. Bxg5 {[%clk 0:01:34]}  Bxg5 {[%clk 0:02:33]} 19. Nde4 {[%clk 0:01:33]}  Bh6 {[%clk 0:02:28]} 20. Bd3 {[%clk 0:01:23]}  Qh4 {[%clk 0:02:27]} 21. Ng3 {[%clk 0:01:05]}  Bxh3 {[%clk 0:02:14]} 22. gxh3 {[%clk 0:01:05]}  Qxh3+ {[%clk 0:02:15]} 23. Kg1 {[%clk 0:01:06]}  h4 {[%clk 0:02:16]} 24. Nce4 {[%clk 0:00:10]}  hxg3 {[%clk 0:02:14]} 25. Nxg3 {[%clk 0:00:11]}  Be3 {[%clk 0:02:14]} 26. Ne4 {[%clk 0:00:05]}  Rf4 {[%clk 0:02:02]} 27. fxe3 {[%clk 0:00:02]}  Rg4+ {[%clk 0:02:02]} 28. Kf2 {[%clk 0:00:02]}  Rg2+ {[%clk 0:02:03]} 29. Ke1 {[%clk 0:00:03]}  Qxe3+ {[%clk 0:02:03]} 30. Be2 {[%clk 0:00:03]}  Qxe4 {[%clk 0:02:04]} 31. Qd3 {[%clk 0:00:03]}  Rxe2+ {[%clk 0:02:04]} 32. Qxe2 {[%clk 0:00:00]}  Qxb1+ {[%clk 0:02:05]} 0-1


[Site "https://www.chess.com"]

[Event "Titled Tuesday Blitz August 1 Early 2023"]
[White "Idani, Pouya"]
[Black "Terry, Renato"]
[WhiteFideId "12510130"]
[BlackFideId "3803457"]
[WhiteElo "2739"]
[BlackElo "2938"]
[Result "1-0"]
[Round "7"]
[TimeControl "180+1"]
[Date "2023.08.01"]
[WhiteClock "0:00:23"]
[BlackClock "0:00:05"]
[Board "20"]

1. e4 {[%clk 0:03:00]}  e6 {[%clk 0:02:58]} 2. d4 {[%clk 0:03:01]}  d5 {[%clk 0:02:59]} 3. e5 {[%clk 0:03:02]}  c5 {[%clk 0:02:59]} 4. c3 {[%clk 0:03:02]}  Qb6 {[%clk 0:02:59]} 5. Nf3 {[%clk 0:03:02]}  Bd7 {[%clk 0:03:00]} 6. Bd3 {[%clk 0:03:00]}  cxd4 {[%clk 0:02:59]} 7. Nxd4 {[%clk 0:03:01]}  Nc6 {[%clk 0:02:59]} 8. Nxc6 {[%clk 0:02:59]}  bxc6 {[%clk 0:02:58]} 9. O-O {[%clk 0:02:59]}  Ne7 {[%clk 0:02:58]} 10. Nd2 {[%clk 0:02:58]}  c5 {[%clk 0:02:58]} 11. Re1 {[%clk 0:02:56]}  Bc6 {[%clk 0:02:53]} 12. Qg4 {[%clk 0:02:53]}  g6 {[%clk 0:02:48]} 13. Nf3 {[%clk 0:02:52]}  h6 {[%clk 0:02:44]} 14. b4 {[%clk 0:02:42]}  cxb4 {[%clk 0:02:34]} 15. Be3 {[%clk 0:02:40]}  Qb7 {[%clk 0:02:30]} 16. cxb4 {[%clk 0:02:37]}  Nf5 {[%clk 0:02:29]} 17. Bc5 {[%clk 0:02:21]}  Bxc5 {[%clk 0:02:05]} 18. bxc5 {[%clk 0:02:21]}  d4 {[%clk 0:02:02]} 19. Nd2 {[%clk 0:02:12]}  h5 {[%clk 0:01:40]} 20. Qh3 {[%clk 0:01:54]}  Qb4 {[%clk 0:01:40]} 21. Nc4 {[%clk 0:01:48]}  O-O {[%clk 0:01:20]} 22. Rac1 {[%clk 0:01:31]}  Rab8 {[%clk 0:01:08]} 23. Nd6 {[%clk 0:01:17]}  Qd2 {[%clk 0:00:58]} 24. Bxf5 {[%clk 0:00:58]}  exf5 {[%clk 0:00:54]} 25. e6 {[%clk 0:00:58]}  fxe6 {[%clk 0:00:49]} 26. Qg3 {[%clk 0:00:54]}  Kh7 {[%clk 0:00:33]} 27. Nc4 {[%clk 0:00:52]}  f4 {[%clk 0:00:24]} 28. Qg5 {[%clk 0:00:48]}  Qxa2 {[%clk 0:00:16]} 29. Qe7+ {[%clk 0:00:40]}  Kh6 {[%clk 0:00:15]} 30. Ne5 {[%clk 0:00:36]}  Bd5 {[%clk 0:00:09]} 31. Nf7+ {[%clk 0:00:25]}  Kg7 {[%clk 0:00:10]} 32. Ng5+ {[%clk 0:00:25]}  Kh6 {[%clk 0:00:10]} 33. h4 {[%clk 0:00:25]}  Rh8 {[%clk 0:00:06]} 34. Nf7+ {[%clk 0:00:25]}  Kg7 {[%clk 0:00:05]} 35. Ne5+ {[%clk 0:00:23]} 1-0


[Site "https://www.chess.com"]

[Event "Titled Tuesday Blitz August 1 Early 2023"]
[White "JeRoma71"]
[Black "Ardelean, George-Catalin"]
[BlackFideId "1207091"]
[WhiteElo "2883"]
[BlackElo "2716"]
[Result "1-0"]
[Round "7"]
[TimeControl "180+1"]
[Date "2023.08.01"]
[WhiteClock "0:02:25"]
[BlackClock "0:00:16"]
[Board "24"]

1. Nf3 {[%clk 0:03:00]}  d5 {[%clk 0:02:59]} 2. g3 {[%clk 0:03:00]}  b6 {[%clk 0:02:57]} 3. Bg2 {[%clk 0:02:59]}  Bb7 {[%clk 0:02:56]} 4. O-O {[%clk 0:03:00]}  e6 {[%clk 0:02:57]} 5. d3 {[%clk 0:02:59]}  Nd7 {[%clk 0:02:56]} 6. Nbd2 {[%clk 0:03:00]}  Ngf6 {[%clk 0:02:55]} 7. e4 {[%clk 0:02:59]}  dxe4 {[%clk 0:02:53]} 8. Ng5 {[%clk 0:02:59]}  Qc8 {[%clk 0:02:46]} 9. Ngxe4 {[%clk 0:02:58]}  Be7 {[%clk 0:02:44]} 10. b3 {[%clk 0:02:58]}  O-O {[%clk 0:02:43]} 11. Bb2 {[%clk 0:02:58]}  Rd8 {[%clk 0:02:41]} 12. Qe2 {[%clk 0:02:57]}  c5 {[%clk 0:02:35]} 13. f4 {[%clk 0:02:56]}  g6 {[%clk 0:02:27]} 14. g4 {[%clk 0:02:50]}  Re8 {[%clk 0:02:13]} 15. f5 {[%clk 0:02:49]}  exf5 {[%clk 0:02:13]} 16. gxf5 {[%clk 0:02:49]}  Nd5 {[%clk 0:01:42]} 17. Qf3 {[%clk 0:02:35]}  g5 {[%clk 0:00:55]} 18. f6 {[%clk 0:02:30]}  Bf8 {[%clk 0:00:16]} 19. Nxg5 {[%clk 0:02:25]} 1-0


[Site "https://www.chess.com"]

[Event "Titled Tuesday Blitz August 1 Early 2023"]
[White "Krzyzanowski, Marcin"]
[Black "Guerra Tulcan, Lenin"]
[WhiteFideId "1132199"]
[BlackFideId "3601382"]
[WhiteElo "2799"]
[BlackElo "2637"]
[Result "0-1"]
[Round "7"]
[TimeControl "180+1"]
[Date "2023.08.01"]
[WhiteClock "0:00:00"]
[BlackClock "0:00:25"]
[Board "28"]

1. e4 {[%clk 0:03:00]}  c5 {[%clk 0:02:59]} 2. Nf3 {[%clk 0:03:01]}  e6 {[%clk 0:03:00]} 3. g3 {[%clk 0:02:58]}  b6 {[%clk 0:03:00]} 4. Bg2 {[%clk 0:02:53]}  Bb7 {[%clk 0:03:00]} 5. Nc3 {[%clk 0:02:53]}  d6 {[%clk 0:02:59]} 6. d4 {[%clk 0:02:52]}  cxd4 {[%clk 0:02:59]} 7. Nxd4 {[%clk 0:02:53]}  a6 {[%clk 0:02:57]} 8. O-O {[%clk 0:02:53]}  Qc7 {[%clk 0:02:56]} 9. Re1 {[%clk 0:02:51]}  Be7 {[%clk 0:02:53]} 10. a4 {[%clk 0:02:41]}  Nd7 {[%clk 0:02:52]} 11. Qg4 {[%clk 0:02:21]}  Bf6 {[%clk 0:02:42]} 12. Nxe6 {[%clk 0:01:46]}  fxe6 {[%clk 0:02:41]} 13. Qxe6+ {[%clk 0:01:47]}  Kf8 {[%clk 0:02:37]} 14. Bf4 {[%clk 0:01:34]}  Ne5 {[%clk 0:02:35]} 15. Rad1 {[%clk 0:01:27]}  Rd8 {[%clk 0:02:22]} 16. Qb3 {[%clk 0:01:07]}  Ne7 {[%clk 0:02:15]} 17. Ne2 {[%clk 0:01:01]}  N5g6 {[%clk 0:01:48]} 18. Be3 {[%clk 0:01:00]}  Nc8 {[%clk 0:01:37]} 19. Nd4 {[%clk 0:00:57]}  Re8 {[%clk 0:01:27]} 20. Ne6+ {[%clk 0:00:53]}  Rxe6 {[%clk 0:01:27]} 21. Qxe6 {[%clk 0:00:54]}  Qf7 {[%clk 0:01:26]} 22. Qxf7+ {[%clk 0:00:22]}  Kxf7 {[%clk 0:01:26]} 23. f4 {[%clk 0:00:23]}  Bxb2 {[%clk 0:01:20]} 24. Bd4 {[%clk 0:00:16]}  Bxd4+ {[%clk 0:01:05]} 25. Rxd4 {[%clk 0:00:17]}  Nf8 {[%clk 0:01:05]} 26. Rc4 {[%clk 0:00:11]}  Ne6 {[%clk 0:01:03]} 27. Rb1 {[%clk 0:00:08]}  Nc5 {[%clk 0:00:58]} 28. h4 {[%clk 0:00:07]}  Rd8 {[%clk 0:00:56]} 29. Rd4 {[%clk 0:00:07]}  Bc6 {[%clk 0:00:52]} 30. e5 {[%clk 0:00:05]}  Ke7 {[%clk 0:00:51]} 31. Rbd1 {[%clk 0:00:03]}  Bxg2 {[%clk 0:00:50]} 32. Kxg2 {[%clk 0:00:03]}  Nb7 {[%clk 0:00:50]} 33. exd6+ {[%clk 0:00:02]}  Ncxd6 {[%clk 0:00:50]} 34. Re1+ {[%clk 0:00:03]}  Kf6 {[%clk 0:00:50]} 35. Rd5 {[%clk 0:00:03]}  Nf5 {[%clk 0:00:48]} 36. Rxd8 {[%clk 0:00:04]}  Nxd8 {[%clk 0:00:48]} 37. g4 {[%clk 0:00:04]}  Nd4 {[%clk 0:00:48]} 38. g5+ {[%clk 0:00:03]}  Kf7 {[%clk 0:00:47]} 39. Kg3 {[%clk 0:00:03]}  N8e6 {[%clk 0:00:42]} 40. c3 {[%clk 0:00:04]}  Nf5+ {[%clk 0:00:41]} 41. Kg4 {[%clk 0:00:04]}  g6 {[%clk 0:00:41]} 42. Rb1 {[%clk 0:00:04]}  Ne3+ {[%clk 0:00:39]} 43. Kf3 {[%clk 0:00:04]}  Nd5 {[%clk 0:00:39]} 44. c4 {[%clk 0:00:05]}  Nd4+ {[%clk 0:00:33]} 45. Kg4 {[%clk 0:00:02]}  Ne3+ {[%clk 0:00:33]} 46. Kg3 {[%clk 0:00:03]}  Nxc4 {[%clk 0:00:33]} 47. Rb4 {[%clk 0:00:02]}  b5 {[%clk 0:00:32]} 48. axb5 {[%clk 0:00:02]}  axb5 {[%clk 0:00:33]} 49. h5 {[%clk 0:00:02]}  Ne2+ {[%clk 0:00:26]} 50. Kf3 {[%clk 0:00:02]}  Nc3 {[%clk 0:00:26]} 51. hxg6+ {[%clk 0:00:01]}  hxg6 {[%clk 0:00:26]} 52. Rb3 {[%clk 0:00:02]}  Nd2+ {[%clk 0:00:24]} 53. Ke3 {[%clk 0:00:02]}  Nxb3 {[%clk 0:00:25]} 54. Kd3 {[%clk 0:00:02]}  Nd5 {[%clk 0:00:25]} 55. Ke4 {[%clk 0:00:02]}  Nxf4 {[%clk 0:00:25]} 56. Kxf4 {[%clk 0:00:02]}  Nd4 {[%clk 0:00:25]} 57. Ke4 {[%clk 0:00:02]}  Ne6 {[%clk 0:00:25]} 58. Ke5 {[%clk 0:00:01]}  Nxg5 {[%clk 0:00:25]} 59. Kf4 {[%clk 0:00:00]}  Ne6+ {[%clk 0:00:25]} 0-1


[Site "https://www.chess.com"]

[Event "Titled Tuesday Blitz August 1 Early 2023"]
[White "Rahman, Masruri"]
[Black "Ibadov, Dashgyn"]
[WhiteFideId "7101163"]
[BlackFideId "24107514"]
[WhiteElo "2783"]
[BlackElo "2556"]
[Result "1-0"]
[Round "7"]
[TimeControl "180+1"]
[Date "2023.08.01"]
[WhiteClock "0:00:06"]
[BlackClock "0:00:03"]
[Board "32"]

1. d4 {[%clk 0:03:00]}  Nf6 {[%clk 0:02:59]} 2. Bf4 {[%clk 0:03:00]}  d5 {[%clk 0:02:59]} 3. e3 {[%clk 0:03:00]}  c5 {[%clk 0:02:59]} 4. Nc3 {[%clk 0:03:00]}  a6 {[%clk 0:02:54]} 5. Nf3 {[%clk 0:02:57]}  e6 {[%clk 0:02:51]} 6. Be2 {[%clk 0:02:54]}  Nc6 {[%clk 0:02:50]} 7. O-O {[%clk 0:02:52]}  Be7 {[%clk 0:02:48]} 8. dxc5 {[%clk 0:02:50]}  Bxc5 {[%clk 0:02:48]} 9. Na4 {[%clk 0:02:50]}  Be7 {[%clk 0:02:43]} 10. c4 {[%clk 0:02:47]}  O-O {[%clk 0:02:39]} 11. Nc3 {[%clk 0:02:45]}  h6 {[%clk 0:02:32]} 12. Ne5 {[%clk 0:02:31]}  Nxe5 {[%clk 0:02:23]} 13. Bxe5 {[%clk 0:02:31]}  dxc4 {[%clk 0:02:15]} 14. Bxc4 {[%clk 0:02:25]}  Bd7 {[%clk 0:02:14]} 15. Qe2 {[%clk 0:02:04]}  Bc6 {[%clk 0:02:13]} 16. Rfd1 {[%clk 0:01:51]}  Qa5 {[%clk 0:02:12]} 17. Bg3 {[%clk 0:01:34]}  Rad8 {[%clk 0:02:08]} 18. f3 {[%clk 0:01:20]}  b5 {[%clk 0:01:49]} 19. Bd3 {[%clk 0:01:05]}  b4 {[%clk 0:01:46]} 20. Nb1 {[%clk 0:01:05]}  Bc5 {[%clk 0:01:39]} 21. Nd2 {[%clk 0:00:58]}  Ba7 {[%clk 0:01:09]} 22. Nc4 {[%clk 0:00:51]}  Qg5 {[%clk 0:01:09]} 23. Bf2 {[%clk 0:00:42]}  Nd5 {[%clk 0:01:03]} 24. h4 {[%clk 0:00:26]}  Qf6 {[%clk 0:01:01]} 25. Be4 {[%clk 0:00:19]}  Bb5 {[%clk 0:00:59]} 26. Bd3 {[%clk 0:00:15]}  Bd7 {[%clk 0:00:49]} 27. f4 {[%clk 0:00:12]}  Bb5 {[%clk 0:00:36]} 28. Ne5 {[%clk 0:00:12]}  Bxd3 {[%clk 0:00:23]} 29. Rxd3 {[%clk 0:00:13]}  a5 {[%clk 0:00:04]} 30. Rad1 {[%clk 0:00:12]}  Rfe8 {[%clk 0:00:03]} 31. Nc6 {[%clk 0:00:07]}  Ra8 {[%clk 0:00:03]} 32. Qf3 {[%clk 0:00:07]}  Bb6 {[%clk 0:00:02]} 33. Ne5 {[%clk 0:00:06]}  Ne7 {[%clk 0:00:02]} 34. Nd7 {[%clk 0:00:06]}  Nf5 {[%clk 0:00:03]} 35. Nxf6+ {[%clk 0:00:06]}  gxf6 {[%clk 0:00:04]} 36. e4 {[%clk 0:00:06]}  Ng7 {[%clk 0:00:03]} 37. Bxb6 {[%clk 0:00:06]} 1-0


[Site "https://www.chess.com"]

[Event "Titled Tuesday Blitz August 1 Early 2023"]
[White "Keleberda, Tymur"]
[Black "djokovic74"]
[WhiteFideId "14174294"]
[WhiteElo "2546"]
[BlackElo "2767"]
[Result "0-1"]
[Round "7"]
[TimeControl "180+1"]
[Date "2023.08.01"]
[WhiteClock "0:01:10"]
[BlackClock "0:00:46"]
[Board "33"]

1. e4 {[%clk 0:03:00]}  e6 {[%clk 0:03:00]} 2. d4 {[%clk 0:03:00]}  d5 {[%clk 0:03:00]} 3. Nc3 {[%clk 0:03:01]}  dxe4 {[%clk 0:03:00]} 4. Nxe4 {[%clk 0:03:02]}  Bd7 {[%clk 0:03:00]} 5. Nf3 {[%clk 0:03:00]}  Bc6 {[%clk 0:03:01]} 6. Bd3 {[%clk 0:03:01]}  Nd7 {[%clk 0:03:01]} 7. O-O {[%clk 0:02:49]}  Ngf6 {[%clk 0:03:01]} 8. Nxf6+ {[%clk 0:02:48]}  Nxf6 {[%clk 0:03:01]} 9. c3 {[%clk 0:02:31]}  Bd6 {[%clk 0:02:45]} 10. Bg5 {[%clk 0:02:30]}  h6 {[%clk 0:02:39]} 11. Bh4 {[%clk 0:02:30]}  O-O {[%clk 0:02:33]} 12. Ne5 {[%clk 0:02:29]}  Bxe5 {[%clk 0:02:28]} 13. dxe5 {[%clk 0:02:29]}  Qd5 {[%clk 0:02:28]} 14. Qf3 {[%clk 0:02:03]}  Qxe5 {[%clk 0:01:49]} 15. Bxf6 {[%clk 0:02:01]}  Qxf6 {[%clk 0:01:45]} 16. Qxf6 {[%clk 0:02:01]}  gxf6 {[%clk 0:01:45]} 17. Rad1 {[%clk 0:01:59]}  Rfd8 {[%clk 0:01:45]} 18. Bc2 {[%clk 0:01:59]}  Kf8 {[%clk 0:01:43]} 19. f3 {[%clk 0:01:59]}  Ke7 {[%clk 0:01:43]} 20. Kf2 {[%clk 0:02:00]}  a5 {[%clk 0:01:42]} 21. Kg3 {[%clk 0:01:58]}  Rg8+ {[%clk 0:01:41]} 22. Kh3 {[%clk 0:01:55]}  Rg5 {[%clk 0:01:35]} 23. g3 {[%clk 0:01:50]}  Rb5 {[%clk 0:01:33]} 24. b3 {[%clk 0:01:36]}  Rc5 {[%clk 0:01:31]} 25. c4 {[%clk 0:01:34]}  a4 {[%clk 0:01:19]} 26. Rd4 {[%clk 0:01:34]}  axb3 {[%clk 0:01:15]} 27. axb3 {[%clk 0:01:34]}  Ra2 {[%clk 0:01:11]} 28. Be4 {[%clk 0:01:25]}  Rh5+ {[%clk 0:01:05]} 29. Kg4 {[%clk 0:01:25]}  f5+ {[%clk 0:00:58]} 30. Bxf5 {[%clk 0:01:15]}  Rxf5 {[%clk 0:00:55]} 31. f4 {[%clk 0:01:10]}  Rxh2 {[%clk 0:00:46]} 32. b4 {[%clk 0:01:10]}  h5# {[%clk 0:00:46]} 0-1


[Site "https://www.chess.com"]

[Event "Titled Tuesday Blitz August 1 Early 2023"]
[White "Fantastic_Power"]
[Black "Jahnz, Fabian"]
[BlackFideId "4653300"]
[WhiteElo "2753"]
[BlackElo "2358"]
[Result "0-1"]
[Round "7"]
[TimeControl "180+1"]
[Date "2023.08.01"]
[WhiteClock "0:00:00"]
[BlackClock "0:00:15"]
[Board "34"]

1. d4 {[%clk 0:03:00]}  d5 {[%clk 0:02:59]} 2. c4 {[%clk 0:03:01]}  e6 {[%clk 0:02:59]} 3. Nc3 {[%clk 0:03:01]}  c6 {[%clk 0:02:59]} 4. e3 {[%clk 0:02:54]}  f5 {[%clk 0:02:58]} 5. Nf3 {[%clk 0:02:44]}  Nf6 {[%clk 0:02:57]} 6. Bd3 {[%clk 0:02:39]}  Bd6 {[%clk 0:02:55]} 7. Rb1 {[%clk 0:02:38]}  O-O {[%clk 0:02:54]} 8. b4 {[%clk 0:02:38]}  Ne4 {[%clk 0:02:54]} 9. Qc2 {[%clk 0:02:37]}  Nd7 {[%clk 0:02:50]} 10. b5 {[%clk 0:02:37]}  Ndf6 {[%clk 0:02:38]} 11. Ne5 {[%clk 0:02:18]}  Nxc3 {[%clk 0:02:27]} 12. Qxc3 {[%clk 0:02:16]}  Ne4 {[%clk 0:01:45]} 13. Bxe4 {[%clk 0:02:15]}  fxe4 {[%clk 0:01:45]} 14. bxc6 {[%clk 0:02:11]}  bxc6 {[%clk 0:01:46]} 15. Nxc6 {[%clk 0:02:11]}  Qf6 {[%clk 0:01:39]} 16. Rb2 {[%clk 0:01:23]}  Ba6 {[%clk 0:01:37]} 17. c5 {[%clk 0:01:21]}  Bc7 {[%clk 0:01:30]} 18. Qc2 {[%clk 0:00:45]}  Bd3 {[%clk 0:01:25]} 19. Qd2 {[%clk 0:00:35]}  Qg5 {[%clk 0:01:07]} 20. g3 {[%clk 0:00:34]}  Rf3 {[%clk 0:00:53]} 21. Rb7 {[%clk 0:00:27]}  Rc8 {[%clk 0:00:37]} 22. Rxa7 {[%clk 0:00:13]}  h5 {[%clk 0:00:31]} 23. Rb7 {[%clk 0:00:10]}  h4 {[%clk 0:00:29]} 24. Rxc7 {[%clk 0:00:05]}  Rxc7 {[%clk 0:00:27]} 25. Ne5 {[%clk 0:00:06]}  Rf8 {[%clk 0:00:21]} 26. Nxd3 {[%clk 0:00:05]}  exd3 {[%clk 0:00:21]} 27. Qxd3 {[%clk 0:00:06]}  h3 {[%clk 0:00:20]} 28. O-O {[%clk 0:00:05]}  Qg4 {[%clk 0:00:19]} 29. Qd1 {[%clk 0:00:04]}  Qe4 {[%clk 0:00:19]} 30. f3 {[%clk 0:00:03]}  Qg6 {[%clk 0:00:17]} 31. Bd2 {[%clk 0:00:02]}  Ra8 {[%clk 0:00:17]} 32. Qb1 {[%clk 0:00:01]}  Qxb1 {[%clk 0:00:15]} 33. Rxb1 {[%clk 0:00:02]}  Rxa2 {[%clk 0:00:15]} 34. Be1 {[%clk 0:00:02]}  Rg2+ {[%clk 0:00:15]} 35. Kh1 {[%clk 0:00:02]}  Ra7 {[%clk 0:00:15]} 36. Rc1 {[%clk 0:00:00]}  Raa2 {[%clk 0:00:15]} 0-1


[Site "https://www.chess.com"]

[Event "Titled Tuesday Blitz August 1 Early 2023"]
[White "Kramnik, Vladimir"]
[Black "only_strong_moves"]
[WhiteFideId "4101588"]
[WhiteElo "2970"]
[BlackElo "2698"]
[Result "1-0"]
[Round "7"]
[TimeControl "180+1"]
[Date "2023.08.01"]
[WhiteClock "0:02:00"]
[BlackClock "0:00:08"]
[Board "38"]

1. c4 {[%clk 0:03:00]}  e6 {[%clk 0:03:00]} 2. Nc3 {[%clk 0:03:00]}  d5 {[%clk 0:03:00]} 3. d4 {[%clk 0:02:59]}  a6 {[%clk 0:02:58]} 4. cxd5 {[%clk 0:02:59]}  exd5 {[%clk 0:02:59]} 5. Bf4 {[%clk 0:02:58]}  Nf6 {[%clk 0:02:58]} 6. e3 {[%clk 0:02:58]}  Be6 {[%clk 0:02:57]} 7. Bd3 {[%clk 0:02:56]}  Nbd7 {[%clk 0:02:57]} 8. h3 {[%clk 0:02:54]}  c5 {[%clk 0:02:50]} 9. Nf3 {[%clk 0:02:53]}  h6 {[%clk 0:02:36]} 10. dxc5 {[%clk 0:02:49]}  Nxc5 {[%clk 0:02:33]} 11. Nd4 {[%clk 0:02:47]}  Be7 {[%clk 0:02:16]} 12. O-O {[%clk 0:02:42]}  O-O {[%clk 0:02:16]} 13. Rc1 {[%clk 0:02:39]}  Rc8 {[%clk 0:02:15]} 14. Bb1 {[%clk 0:02:39]}  Qb6 {[%clk 0:02:05]} 15. Qe2 {[%clk 0:02:28]}  Nfe4 {[%clk 0:01:57]} 16. Rfd1 {[%clk 0:02:22]}  Nxc3 {[%clk 0:01:53]} 17. Rxc3 {[%clk 0:02:21]}  Ne4 {[%clk 0:01:37]} 18. Rb3 {[%clk 0:02:17]}  Qa7 {[%clk 0:01:20]} 19. Bxe4 {[%clk 0:02:17]}  dxe4 {[%clk 0:01:20]} 20. Nxe6 {[%clk 0:02:16]}  fxe6 {[%clk 0:01:21]} 21. Rd7 {[%clk 0:02:15]}  Qc5 {[%clk 0:00:58]} 22. Rbxb7 {[%clk 0:02:11]}  Bf6 {[%clk 0:00:58]} 23. Qg4 {[%clk 0:02:08]}  Qf5 {[%clk 0:00:10]} 24. Rxg7+ {[%clk 0:02:06]}  Kh8 {[%clk 0:00:10]} 25. Qxf5 {[%clk 0:02:02]}  exf5 {[%clk 0:00:11]} 26. Rh7+ {[%clk 0:02:01]}  Kg8 {[%clk 0:00:11]} 27. Rxh6 {[%clk 0:02:01]}  Bxb2 {[%clk 0:00:10]} 28. Rg6+ {[%clk 0:02:00]}  Kh8 {[%clk 0:00:08]} 29. Rxb2 {[%clk 0:02:00]} 1-0


[Site "https://www.chess.com"]

[Event "Titled Tuesday Blitz August 1 Early 2023"]
[White "Aravindh, Chithambaram VR."]
[Black "Materia, Marco"]
[WhiteFideId "5072786"]
[BlackFideId "45150451"]
[WhiteElo "2899"]
[BlackElo "2682"]
[Result "0-1"]
[Round "7"]
[TimeControl "180+1"]
[Date "2023.08.01"]
[WhiteClock "0:00:00"]
[BlackClock "0:01:09"]
[Board "40"]

1. g3 {[%clk 0:02:58]}  d5 {[%clk 0:02:59]} 2. Bg2 {[%clk 0:02:59]}  Nf6 {[%clk 0:02:59]} 3. f4 {[%clk 0:02:58]}  g6 {[%clk 0:02:58]} 4. Nf3 {[%clk 0:02:59]}  Bh6 {[%clk 0:02:58]} 5. O-O {[%clk 0:02:58]}  O-O {[%clk 0:02:59]} 6. b3 {[%clk 0:02:59]}  Nbd7 {[%clk 0:02:58]} 7. Bb2 {[%clk 0:02:59]}  c5 {[%clk 0:02:58]} 8. e3 {[%clk 0:02:56]}  Bg7 {[%clk 0:02:58]} 9. d3 {[%clk 0:02:50]}  Re8 {[%clk 0:02:44]} 10. Nbd2 {[%clk 0:02:39]}  Ng4 {[%clk 0:02:41]} 11. Bxg7 {[%clk 0:02:39]}  Nxe3 {[%clk 0:02:42]} 12. Qe2 {[%clk 0:02:39]}  Nxf1 {[%clk 0:02:42]} 13. Bb2 {[%clk 0:02:37]}  Nxd2 {[%clk 0:02:41]} 14. Qxd2 {[%clk 0:02:38]}  d4 {[%clk 0:02:31]} 15. Re1 {[%clk 0:02:38]}  Nf6 {[%clk 0:02:32]} 16. c3 {[%clk 0:02:37]}  dxc3 {[%clk 0:02:31]} 17. Qxc3 {[%clk 0:02:38]}  Bf5 {[%clk 0:02:30]} 18. Ne5 {[%clk 0:02:28]}  Qd4+ {[%clk 0:02:30]} 19. Qxd4 {[%clk 0:02:28]}  cxd4 {[%clk 0:02:31]} 20. Bxd4 {[%clk 0:02:26]}  Rad8 {[%clk 0:02:29]} 21. Bxa7 {[%clk 0:02:26]}  Ra8 {[%clk 0:02:26]} 22. Bd4 {[%clk 0:02:23]}  Rxa2 {[%clk 0:02:26]} 23. Nc4 {[%clk 0:02:17]}  Rd8 {[%clk 0:02:19]} 24. Bc5 {[%clk 0:02:10]}  Rxd3 {[%clk 0:02:17]} 25. Bxe7 {[%clk 0:02:09]}  Be4 {[%clk 0:02:04]} 26. Bf1 {[%clk 0:01:56]}  Ng4 {[%clk 0:01:54]} 27. Rxe4 {[%clk 0:01:54]}  Rd1 {[%clk 0:01:55]} 28. Bb4 {[%clk 0:00:27]}  h5 {[%clk 0:01:35]} 29. Bc3 {[%clk 0:00:22]}  f6 {[%clk 0:01:28]} 30. Bb2 {[%clk 0:00:18]}  b5 {[%clk 0:01:24]} 31. Rd4 {[%clk 0:00:04]}  Rxf1+ {[%clk 0:01:12]} 32. Kxf1 {[%clk 0:00:04]}  bxc4 {[%clk 0:01:12]} 33. Rd2 {[%clk 0:00:00]}  cxb3 {[%clk 0:01:09]} 0-1


[Site "https://www.chess.com"]